[Event "Early-Titled-Tuesday-Blitz-January-23-2024"]
[Site "Chess.com"]
[Date "2024.01.23"]
[Round "2"]
[White "DDTerziev04"]
[Black "BashiqChess"]
[Result "1-0"]
[WhiteElo "2204"]
[BlackElo "2462"]
[TimeControl "180+1"]
[EndTime "8:17:45 PST"]
[Termination "DDTerziev04 won by resignation"]

1. e4 {[%clk 0:03:00.9]} 1... c5 {[%clk 0:02:56.5]} 2. Nf3 {[%clk 0:03:00.1]}
2... g6 {[%clk 0:02:56.1]} 3. d4 {[%clk 0:02:58.5]} 3... cxd4 {[%clk 0:02:57]}
4. Qxd4 {[%clk 0:02:58.8]} 4... Nf6 {[%clk 0:02:57.2]} 5. c4 {[%clk 0:02:58.7]}
5... Nc6 {[%clk 0:02:53.4]} 6. Qe3 {[%clk 0:02:57.6]} 6... d6 {[%clk 0:02:52.2]}
7. Nc3 {[%clk 0:02:56.9]} 7... Bg7 {[%clk 0:02:52.3]} 8. Be2 {[%clk 0:02:54.9]}
8... O-O {[%clk 0:02:52.3]} 9. O-O {[%clk 0:02:54.4]} 9... Be6 {[%clk
0:02:47.8]} 10. Rb1 {[%clk 0:02:44.6]} 10... Rc8 {[%clk 0:02:43.8]} 11. h3
{[%clk 0:02:39.8]} 11... Nd7 {[%clk 0:02:38]} 12. b3 {[%clk 0:02:37]} 12... a6
{[%clk 0:02:26.3]} 13. Bb2 {[%clk 0:02:36.1]} 13... Qa5 {[%clk 0:02:08.6]} 14.
Rfd1 {[%clk 0:02:32.6]} 14... Nde5 {[%clk 0:02:05.5]} 15. Nd5 {[%clk 0:02:22.6]}
15... Bxd5 {[%clk 0:02:02.4]} 16. exd5 {[%clk 0:02:20.1]} 16... Nxf3+ {[%clk
0:02:00.6]} 17. Bxf3 {[%clk 0:02:21]} 17... Ne5 {[%clk 0:01:59.9]} 18. Be2
{[%clk 0:02:18.6]} 18... b5 {[%clk 0:01:46.2]} 19. f4 {[%clk 0:02:14.7]} 19...
bxc4 {[%clk 0:01:44.6]} 20. bxc4 {[%clk 0:01:51.1]} 20... Nxc4 {[%clk
0:01:43.9]} 21. Bxc4 {[%clk 0:01:50.7]} 21... Rxc4 {[%clk 0:01:39.1]} 22. Bxg7
{[%clk 0:01:47.7]} 22... Kxg7 {[%clk 0:01:40]} 23. Qxe7 {[%clk 0:01:45.6]} 23...
Qc5+ {[%clk 0:01:29]} 24. Kh1 {[%clk 0:01:44.3]} 24... Rxf4 {[%clk 0:01:23.4]}
25. Rbc1 {[%clk 0:01:33.2]} 25... Qa3 {[%clk 0:01:13.4]} 26. Rc6 {[%clk
0:01:20.5]} 26... Qxa2 {[%clk 0:00:31.5]} 27. Qxd6 {[%clk 0:01:14.8]} 27... Rf5
{[%clk 0:00:25.8]} 28. Rxa6 {[%clk 0:01:00.4]} 28... Qe2 {[%clk 0:00:25.8]} 29.
Raa1 {[%clk 0:00:57.7]} 29... Rc8 {[%clk 0:00:24.7]} 30. Qg3 {[%clk 0:00:55.7]}
30... Rc2 {[%clk 0:00:23.8]} 31. d6 {[%clk 0:00:54.4]} 31... Rf2 {[%clk
0:00:22.8]} 32. Rg1 {[%clk 0:00:44.7]} 32... Qd2 {[%clk 0:00:19]} 33. Rad1
{[%clk 0:00:18.2]} 33... Qa5 {[%clk 0:00:18.8]} 34. d7 {[%clk 0:00:16.9]} 34...
Rcd2 {[%clk 0:00:16]} 35. Qxf2 {[%clk 0:00:10.5]} 35... Rxf2 {[%clk 0:00:06.5]}
36. d8=Q {[%clk 0:00:10.6]} 36... h5 {[%clk 0:00:02.8]} 37. Qxa5 {[%clk
0:00:10.1]} 1-0

[Event "Early-Titled-Tuesday-Blitz-January-23-2024"]
[Site "Chess.com"]
[Date "2024.01.23"]
[Round "2"]
[White "frederiksvane"]
[Black "Sadykov_Ramil"]
[Result "1-0"]
[WhiteElo "2930"]
[BlackElo "2603"]
[TimeControl "180+1"]
[EndTime "8:17:46 PST"]
[Termination "frederiksvane won on time"]

1. e4 {[%clk 0:02:57.5]} 1... e5 {[%clk 0:02:59.7]} 2. Bc4 {[%clk 0:02:56.8]}
2... Nf6 {[%clk 0:02:53.4]} 3. d3 {[%clk 0:02:57.3]} 3... Bc5 {[%clk 0:02:43]}
4. Nf3 {[%clk 0:02:54.5]} 4... d6 {[%clk 0:02:41]} 5. O-O {[%clk 0:02:52.3]}
5... O-O {[%clk 0:02:34.5]} 6. c3 {[%clk 0:02:52.4]} 6... Bb6 {[%clk 0:02:24.6]}
7. Bb3 {[%clk 0:02:50.5]} 7... Be6 {[%clk 0:02:19.5]} 8. Bc2 {[%clk 0:02:48.9]}
8... h6 {[%clk 0:02:14]} 9. h3 {[%clk 0:02:39.3]} 9... c6 {[%clk 0:02:05.9]} 10.
d4 {[%clk 0:02:39]} 10... Bc7 {[%clk 0:01:56.8]} 11. Be3 {[%clk 0:02:34.9]}
11... Re8 {[%clk 0:01:52.6]} 12. Nbd2 {[%clk 0:02:30.2]} 12... Nbd7 {[%clk
0:01:52.1]} 13. Re1 {[%clk 0:02:26.3]} 13... Nf8 {[%clk 0:01:48.8]} 14. Nf1
{[%clk 0:02:18]} 14... Ng6 {[%clk 0:01:48.4]} 15. Ng3 {[%clk 0:02:18.3]} 15...
a5 {[%clk 0:01:34.5]} 16. a4 {[%clk 0:02:16.8]} 16... Qd7 {[%clk 0:01:29.7]} 17.
Qe2 {[%clk 0:02:04.2]} 17... Rad8 {[%clk 0:01:25.6]} 18. Rad1 {[%clk 0:02:03.4]}
18... Qc8 {[%clk 0:01:24.6]} 19. Qf1 {[%clk 0:02:02.1]} 19... Qb8 {[%clk
0:01:12.9]} 20. c4 {[%clk 0:01:53.7]} 20... d5 {[%clk 0:00:58]} 21. exd5 {[%clk
0:01:52.9]} 21... cxd5 {[%clk 0:00:57.7]} 22. Bxg6 {[%clk 0:01:53.6]} 22... fxg6
{[%clk 0:00:54.4]} 23. dxe5 {[%clk 0:01:52.1]} 23... Ne4 {[%clk 0:00:40.2]} 24.
cxd5 {[%clk 0:00:43.4]} 24... Nxg3 {[%clk 0:00:39.9]} 25. Qc4 {[%clk 0:00:28.3]}
25... Rxd5 {[%clk 0:00:34.3]} 26. Rxd5 {[%clk 0:00:28.3]} 26... Nf5 {[%clk
0:00:32.4]} 27. Qe4 {[%clk 0:00:27.9]} 27... Bxd5 {[%clk 0:00:25]} 28. Qxd5+
{[%clk 0:00:28.8]} 28... Kh7 {[%clk 0:00:25.8]} 29. Bd2 {[%clk 0:00:29.5]} 29...
Bb6 {[%clk 0:00:15.6]} 30. Bxa5 {[%clk 0:00:25.5]} 30... Rd8 {[%clk 0:00:15.4]}
31. Qb5 {[%clk 0:00:25.3]} 31... Bxa5 {[%clk 0:00:13.9]} 32. Qxa5 {[%clk
0:00:26.2]} 32... b6 {[%clk 0:00:12.3]} 33. Qc3 {[%clk 0:00:25.1]} 33... Rc8
{[%clk 0:00:12.2]} 34. Qb3 {[%clk 0:00:22.1]} 34... Qc7 {[%clk 0:00:10.8]} 35.
e6 {[%clk 0:00:20.6]} 35... Re8 {[%clk 0:00:07.3]} 36. Qb5 {[%clk 0:00:20.7]}
36... Re7 {[%clk 0:00:07.5]} 37. Qe5 {[%clk 0:00:20.2]} 37... Qc2 {[%clk
0:00:03.6]} 38. g4 {[%clk 0:00:15.1]} 38... Qb3 {[%clk 0:00:01.6]} 39. Kg2
{[%clk 0:00:12.8]} 1-0

[Event "Early-Titled-Tuesday-Blitz-January-23-2024"]
[Site "Chess.com"]
[Date "2024.01.23"]
[Round "2"]
[White "Glidzhian_Gor"]
[Black "WhiteKnight2612"]
[Result "1-0"]
[WhiteElo "2594"]
[BlackElo "2859"]
[TimeControl "180+1"]
[EndTime "8:17:47 PST"]
[Termination "Glidzhian_Gor won by checkmate"]

1. e4 {[%clk 0:02:59.6]} 1... e6 {[%clk 0:02:56.3]} 2. d4 {[%clk 0:02:58.6]}
2... c5 {[%clk 0:02:44.9]} 3. c3 {[%clk 0:02:43]} 3... d5 {[%clk 0:02:41.9]} 4.
e5 {[%clk 0:02:39.2]} 4... Nc6 {[%clk 0:02:42.1]} 5. Nf3 {[%clk 0:02:39.3]} 5...
Bd7 {[%clk 0:02:42.4]} 6. Bd3 {[%clk 0:02:37.7]} 6... Qb6 {[%clk 0:02:40.5]} 7.
O-O {[%clk 0:02:37.8]} 7... cxd4 {[%clk 0:02:40.2]} 8. cxd4 {[%clk 0:02:37.1]}
8... Nxd4 {[%clk 0:02:41.1]} 9. Nbd2 {[%clk 0:02:36.5]} 9... Bc5 {[%clk
0:02:32.9]} 10. b4 {[%clk 0:02:35.9]} 10... Qxb4 {[%clk 0:01:52.7]} 11. Nxd4
{[%clk 0:02:32.8]} 11... Bxd4 {[%clk 0:01:49.4]} 12. Rb1 {[%clk 0:02:32.4]}
12... Qc3 {[%clk 0:01:45]} 13. Nf3 {[%clk 0:01:43.6]} 13... Bb6 {[%clk
0:01:43.3]} 14. Rb3 {[%clk 0:01:27.4]} 14... Qc8 {[%clk 0:01:17.9]} 15. Ba3
{[%clk 0:01:26.5]} 15... Ne7 {[%clk 0:01:14.7]} 16. Ng5 {[%clk 0:01:19.3]} 16...
h6 {[%clk 0:01:13.2]} 17. Qh5 {[%clk 0:00:54]} 17... g6 {[%clk 0:01:10.7]} 18.
Qh4 {[%clk 0:00:53.4]} 18... Bd8 {[%clk 0:01:04.7]} 19. Rc1 {[%clk 0:00:48.4]}
19... Nc6 {[%clk 0:00:54]} 20. f4 {[%clk 0:00:27.9]} 20... Qc7 {[%clk
0:00:25.3]} 21. Bd6 {[%clk 0:00:20]} 21... Qa5 {[%clk 0:00:24.2]} 22. Qh3 {[%clk
0:00:06.7]} 22... Qd2 {[%clk 0:00:20.3]} 23. Rf1 {[%clk 0:00:07.2]} 23... Nd4
{[%clk 0:00:19.3]} 24. Rxb7 {[%clk 0:00:06.8]} 24... Rc8 {[%clk 0:00:07.8]} 25.
Nxf7 {[%clk 0:00:07]} 25... Rc3 {[%clk 0:00:06.5]} 26. Bxg6 {[%clk 0:00:05.1]}
26... Ne2+ {[%clk 0:00:05.3]} 27. Kh1 {[%clk 0:00:05.5]} 27... Rg8 {[%clk
0:00:05.2]} 28. Qh5 {[%clk 0:00:03.9]} 28... Ng3+ {[%clk 0:00:04.7]} 29. hxg3
{[%clk 0:00:03.4]} 29... Qd3 {[%clk 0:00:05.2]} 30. Bxd3 {[%clk 0:00:02.4]}
30... Rg4 {[%clk 0:00:05]} 31. Ng5# {[%clk 0:00:01.7]} 1-0

[Event "Early-Titled-Tuesday-Blitz-January-23-2024"]
[Site "Chess.com"]
[Date "2024.01.23"]
[Round "2"]
[White "mertfelin"]
[Black "Zheenbekov86"]
[Result "0-1"]
[WhiteElo "2260"]
[BlackElo "2510"]
[TimeControl "180+1"]
[EndTime "8:17:47 PST"]
[Termination "Zheenbekov86 won by resignation"]

1. e4 {[%clk 0:03:00]} 1... c6 {[%clk 0:02:59.1]} 2. Nc3 {[%clk 0:03:00.1]} 2...
d5 {[%clk 0:02:58.8]} 3. Nf3 {[%clk 0:03:00.6]} 3... dxe4 {[%clk 0:02:57.9]} 4.
Nxe4 {[%clk 0:03:01.1]} 4... Nf6 {[%clk 0:02:57.6]} 5. Qe2 {[%clk 0:03:01.4]}
5... Nxe4 {[%clk 0:02:56.4]} 6. Qxe4 {[%clk 0:03:01.8]} 6... Qd5 {[%clk
0:02:56.9]} 7. Qh4 {[%clk 0:03:02.3]} 7... Qe6+ {[%clk 0:02:50.5]} 8. Be2 {[%clk
0:03:00]} 8... Qg6 {[%clk 0:02:46.2]} 9. O-O {[%clk 0:02:53.3]} 9... Qxc2 {[%clk
0:02:45.5]} 10. Re1 {[%clk 0:02:53.4]} 10... Nd7 {[%clk 0:02:38.1]} 11. d4
{[%clk 0:02:52]} 11... Nf6 {[%clk 0:02:35.3]} 12. Ne5 {[%clk 0:02:05.8]} 12...
Bf5 {[%clk 0:02:13.9]} 13. h3 {[%clk 0:01:46]} 13... e6 {[%clk 0:02:12.1]} 14.
Bg5 {[%clk 0:01:37]} 14... Be7 {[%clk 0:02:09.2]} 15. b3 {[%clk 0:01:22.7]}
15... O-O {[%clk 0:01:51.7]} 16. Bf3 {[%clk 0:01:19.6]} 16... Qb2 {[%clk
0:01:35.9]} 17. Nd7 {[%clk 0:01:08.3]} 17... Nxd7 {[%clk 0:01:29.2]} 18. Bxe7
{[%clk 0:01:08.8]} 18... Rfe8 {[%clk 0:01:29.1]} 19. Bd6 {[%clk 0:01:09.4]}
19... Bg6 {[%clk 0:01:22.5]} 20. Qg3 {[%clk 0:01:06.2]} 20... Nf6 {[%clk
0:01:20.9]} 21. Be5 {[%clk 0:01:03.7]} 21... Nd7 {[%clk 0:01:14.9]} 22. h4
{[%clk 0:00:56.3]} 22... Nxe5 {[%clk 0:01:14.1]} 23. dxe5 {[%clk 0:00:57.2]}
23... h6 {[%clk 0:01:09.6]} 24. Qf4 {[%clk 0:00:51.8]} 24... Rad8 {[%clk
0:01:05.9]} 25. Qb4 {[%clk 0:00:50.8]} 25... Rd2 {[%clk 0:00:53.2]} 26. Rf1
{[%clk 0:00:49]} 26... Rxf2 {[%clk 0:00:49.3]} 27. Qxb7 {[%clk 0:00:45.5]} 27...
Rxf1+ {[%clk 0:00:47.1]} 28. Rxf1 {[%clk 0:00:46.3]} 28... Qd4+ {[%clk 0:00:47]}
29. Rf2 {[%clk 0:00:45.3]} 29... Qxh4 {[%clk 0:00:40.2]} 30. Qxc6 {[%clk
0:00:41.7]} 30... Rd8 {[%clk 0:00:40]} 31. Rf1 {[%clk 0:00:42.3]} 31... Qd4+
{[%clk 0:00:39.2]} 32. Kh1 {[%clk 0:00:42.8]} 32... Qxe5 {[%clk 0:00:38.5]} 33.
Qb7 {[%clk 0:00:41.7]} 33... Qc5 {[%clk 0:00:31.2]} 34. Be4 {[%clk 0:00:33.3]}
34... Rd4 {[%clk 0:00:29.7]} 35. Qb8+ {[%clk 0:00:29.6]} 35... Kh7 {[%clk
0:00:29.2]} 36. Bxg6+ {[%clk 0:00:29.4]} 36... fxg6 {[%clk 0:00:29.1]} 37. Qg3
{[%clk 0:00:30.3]} 37... g5 {[%clk 0:00:25.3]} 38. Rf2 {[%clk 0:00:30.8]} 38...
Rh4+ {[%clk 0:00:22.2]} 39. Kg1 {[%clk 0:00:31.4]} 39... Rd4 {[%clk 0:00:15.2]}
40. Kh2 {[%clk 0:00:25.7]} 40... a5 {[%clk 0:00:15.1]} 0-1

[Event "Early-Titled-Tuesday-Blitz-January-23-2024"]
[Site "Chess.com"]
[Date "2024.01.23"]
[Round "2"]
[White "simonachess"]
[Black "twofoxniel"]
[Result "0-1"]
[WhiteElo "2340"]
[BlackElo "2691"]
[TimeControl "180+1"]
[EndTime "8:17:48 PST"]
[Termination "twofoxniel won on time"]

1. d4 {[%clk 0:02:55.9]} 1... d5 {[%clk 0:02:59.4]} 2. c4 {[%clk 0:02:56.4]}
2... c6 {[%clk 0:02:58.9]} 3. Nc3 {[%clk 0:02:56.7]} 3... dxc4 {[%clk
0:02:58.2]} 4. Nf3 {[%clk 0:02:52]} 4... Nf6 {[%clk 0:02:57.4]} 5. e4 {[%clk
0:02:33.2]} 5... b5 {[%clk 0:02:56.2]} 6. Qc2 {[%clk 0:02:33.5]} 6... e6 {[%clk
0:02:54.1]} 7. Ne2 {[%clk 0:02:33.6]} 7... Be7 {[%clk 0:02:54]} 8. Ng3 {[%clk
0:02:34]} 8... Bb7 {[%clk 0:02:53.2]} 9. Be2 {[%clk 0:02:33.8]} 9... Nbd7 {[%clk
0:02:53.7]} 10. O-O {[%clk 0:02:31.4]} 10... O-O {[%clk 0:02:53.4]} 11. Rd1
{[%clk 0:02:31.6]} 11... Qc7 {[%clk 0:02:52.1]} 12. e5 {[%clk 0:02:26]} 12...
Nd5 {[%clk 0:02:51.8]} 13. Bg5 {[%clk 0:02:25.9]} 13... h6 {[%clk 0:02:46.7]}
14. Bxe7 {[%clk 0:02:17.7]} 14... Nxe7 {[%clk 0:02:47.6]} 15. Ne4 {[%clk
0:02:11.5]} 15... c5 {[%clk 0:02:43.8]} 16. Nd6 {[%clk 0:01:48.5]} 16... a6
{[%clk 0:02:19.4]} 17. a4 {[%clk 0:01:42.2]} 17... Bc6 {[%clk 0:02:18.2]} 18. b3
{[%clk 0:01:26.2]} 18... cxb3 {[%clk 0:01:50.3]} 19. Qxb3 {[%clk 0:01:24.2]}
19... bxa4 {[%clk 0:01:45.3]} 20. Qc2 {[%clk 0:01:12.5]} 20... Rab8 {[%clk
0:01:25.2]} 21. dxc5 {[%clk 0:01:09.9]} 21... Bxf3 {[%clk 0:01:24.6]} 22. Bxf3
{[%clk 0:01:07.7]} 22... Qxc5 {[%clk 0:01:25.1]} 23. Qxa4 {[%clk 0:00:51.9]}
23... Nxe5 {[%clk 0:01:22.6]} 24. Be2 {[%clk 0:00:40]} 24... Nd5 {[%clk
0:01:17.5]} 25. Ne4 {[%clk 0:00:36.1]} 25... Qb4 {[%clk 0:00:52.8]} 26. Bxa6
{[%clk 0:00:21.7]} 26... Qxa4 {[%clk 0:00:52.6]} 27. Rxa4 {[%clk 0:00:22.1]}
27... f5 {[%clk 0:00:51.5]} 28. Nc5 {[%clk 0:00:09.6]} 28... Nc3 {[%clk
0:00:50.8]} 29. Rad4 {[%clk 0:00:09.3]} 29... Nxd1 {[%clk 0:00:50.4]} 30. Rxd1
{[%clk 0:00:10.2]} 30... Rfd8 {[%clk 0:00:44.4]} 31. Re1 {[%clk 0:00:09.4]}
31... Rd6 {[%clk 0:00:23.5]} 32. Bf1 {[%clk 0:00:05.9]} 32... Nf7 {[%clk
0:00:18.2]} 33. f4 {[%clk 0:00:05.7]} 33... Re8 {[%clk 0:00:18]} 34. h3 {[%clk
0:00:04.1]} 34... Kf8 {[%clk 0:00:17.6]} 35. Kf2 {[%clk 0:00:03]} 35... Nd8
{[%clk 0:00:17.8]} 36. Nd3 {[%clk 0:00:02.8]} 36... Rd4 {[%clk 0:00:17.4]} 37.
g3 {[%clk 0:00:02.3]} 37... Nf7 {[%clk 0:00:17.3]} 38. Be2 {[%clk 0:00:01.9]}
38... e5 {[%clk 0:00:17]} 39. fxe5 {[%clk 0:00:01.7]} 39... Nxe5 {[%clk
0:00:17]} 40. Nf4 {[%clk 0:00:02.1]} 40... g5 {[%clk 0:00:14.9]} 0-1

[Event "Early-Titled-Tuesday-Blitz-January-23-2024"]
[Site "Chess.com"]
[Date "2024.01.23"]
[Round "2"]
[White "JuniorJumper"]
[Black "Seochesspie"]
[Result "1-0"]
[WhiteElo "2568"]
[BlackElo "2801"]
[TimeControl "180+1"]
[EndTime "8:17:49 PST"]
[Termination "JuniorJumper won by resignation"]

1. b3 {[%clk 0:02:55.5]} 1... d6 {[%clk 0:02:56.4]} 2. Bb2 {[%clk 0:02:54]} 2...
e5 {[%clk 0:02:56.5]} 3. e3 {[%clk 0:02:53]} 3... g6 {[%clk 0:02:56.4]} 4. d4
{[%clk 0:02:53.4]} 4... Bg7 {[%clk 0:02:55.8]} 5. dxe5 {[%clk 0:02:53.6]} 5...
Nd7 {[%clk 0:02:51.2]} 6. Nf3 {[%clk 0:02:50.4]} 6... dxe5 {[%clk 0:02:51.1]} 7.
Bc4 {[%clk 0:02:47.3]} 7... Nh6 {[%clk 0:02:49.7]} 8. O-O {[%clk 0:02:44.9]}
8... O-O {[%clk 0:02:50]} 9. e4 {[%clk 0:02:43.5]} 9... Nb6 {[%clk 0:02:24.2]}
10. Be2 {[%clk 0:02:34]} 10... Qe7 {[%clk 0:02:20.4]} 11. Ba3 {[%clk 0:02:33.5]}
11... c5 {[%clk 0:02:20.7]} 12. Nbd2 {[%clk 0:02:24.9]} 12... Ng4 {[%clk
0:02:13.3]} 13. Ne1 {[%clk 0:02:01.1]} 13... Nf6 {[%clk 0:02:12.1]} 14. Nd3
{[%clk 0:02:01.4]} 14... Nbd7 {[%clk 0:02:07.2]} 15. Bb2 {[%clk 0:01:56.7]}
15... b6 {[%clk 0:02:06.2]} 16. a4 {[%clk 0:01:56.5]} 16... Bb7 {[%clk
0:02:04.6]} 17. f3 {[%clk 0:01:56]} 17... Rad8 {[%clk 0:01:57.6]} 18. Qe1 {[%clk
0:01:55.8]} 18... Ne8 {[%clk 0:01:57]} 19. Nc4 {[%clk 0:01:54.6]} 19... f6
{[%clk 0:01:55]} 20. Ne3 {[%clk 0:01:53.7]} 20... Nc7 {[%clk 0:01:55.3]} 21. Nf2
{[%clk 0:01:40.5]} 21... Rfe8 {[%clk 0:01:54.3]} 22. Bc4+ {[%clk 0:01:40.2]}
22... Kh8 {[%clk 0:01:54.5]} 23. Rd1 {[%clk 0:01:39.3]} 23... Nf8 {[%clk
0:01:54.5]} 24. Qe2 {[%clk 0:01:38.3]} 24... Nfe6 {[%clk 0:01:54.4]} 25. c3
{[%clk 0:01:30.9]} 25... Bh6 {[%clk 0:01:48.9]} 26. g3 {[%clk 0:01:29.3]} 26...
Bg7 {[%clk 0:01:32.5]} 27. Bc1 {[%clk 0:01:23.8]} 27... Rxd1 {[%clk 0:01:26.8]}
28. Rxd1 {[%clk 0:01:23.7]} 28... Rd8 {[%clk 0:01:27.3]} 29. Rxd8+ {[%clk
0:01:24.2]} 29... Qxd8 {[%clk 0:01:27.6]} 30. Qd3 {[%clk 0:01:20.6]} 30... Qxd3
{[%clk 0:01:27.5]} 31. Nxd3 {[%clk 0:01:19.8]} 31... Bf8 {[%clk 0:01:27.7]} 32.
Nf2 {[%clk 0:01:08.2]} 32... Kg7 {[%clk 0:01:24.9]} 33. Kf1 {[%clk 0:01:06.3]}
33... h5 {[%clk 0:01:23.7]} 34. Ke2 {[%clk 0:01:06.1]} 34... Kf7 {[%clk
0:01:23.6]} 35. Nd5 {[%clk 0:01:03.5]} 35... Nxd5 {[%clk 0:01:18.4]} 36. exd5
{[%clk 0:00:58.9]} 36... Ng7 {[%clk 0:01:12.8]} 37. Bh6 {[%clk 0:00:48]} 37...
Bd6 {[%clk 0:00:59.8]} 38. Ne4 {[%clk 0:00:36.1]} 38... Nf5 {[%clk 0:00:59.1]}
39. g4 {[%clk 0:00:28]} 39... hxg4 {[%clk 0:00:28.1]} 40. fxg4 {[%clk
0:00:28.9]} 40... Nxh6 {[%clk 0:00:28.3]} 41. Nxd6+ {[%clk 0:00:29.2]} 41... Kf8
{[%clk 0:00:28.1]} 42. Nxb7 {[%clk 0:00:29.4]} 42... Nxg4 {[%clk 0:00:28.2]} 43.
h3 {[%clk 0:00:22.6]} 43... Nh6 {[%clk 0:00:27.4]} 44. Nd6 {[%clk 0:00:21.3]}
44... Ke7 {[%clk 0:00:25.8]} 45. Nc8+ {[%clk 0:00:21.2]} 45... Kd8 {[%clk
0:00:24.9]} 46. Nxa7 {[%clk 0:00:21.4]} 46... Nf5 {[%clk 0:00:25]} 47. Bd3
{[%clk 0:00:16.9]} 1-0

[Event "Early-Titled-Tuesday-Blitz-January-23-2024"]
[Site "Chess.com"]
[Date "2024.01.23"]
[Round "2"]
[White "starworld123"]
[Black "stasOR4ik"]
[Result "1-0"]
[WhiteElo "2839"]
[BlackElo "2421"]
[TimeControl "180+1"]
[EndTime "8:17:50 PST"]
[Termination "starworld123 won by checkmate"]

1. Nf3 {[%clk 0:03:00.9]} 1... d5 {[%clk 0:03:00.1]} 2. d4 {[%clk 0:02:59.4]}
2... Nf6 {[%clk 0:03:00.6]} 3. e3 {[%clk 0:02:55.2]} 3... Bg4 {[%clk 0:02:59.3]}
4. Be2 {[%clk 0:02:50.6]} 4... e6 {[%clk 0:02:59.5]} 5. h3 {[%clk 0:02:49]} 5...
Bh5 {[%clk 0:02:59.2]} 6. b3 {[%clk 0:02:48.7]} 6... Nbd7 {[%clk 0:02:59.5]} 7.
Bb2 {[%clk 0:02:47.8]} 7... a5 {[%clk 0:02:54.6]} 8. a3 {[%clk 0:02:44.3]} 8...
Bd6 {[%clk 0:02:50.8]} 9. Nbd2 {[%clk 0:02:41.7]} 9... O-O {[%clk 0:02:48.2]}
10. O-O {[%clk 0:02:36.6]} 10... Qe7 {[%clk 0:02:36.4]} 11. Ne5 {[%clk 0:02:33]}
11... Bxe2 {[%clk 0:02:33.1]} 12. Qxe2 {[%clk 0:02:33.9]} 12... Ne4 {[%clk
0:02:07.3]} 13. Nxe4 {[%clk 0:02:31.8]} 13... dxe4 {[%clk 0:02:07.5]} 14. Nc4
{[%clk 0:02:25.8]} 14... a4 {[%clk 0:02:02.2]} 15. b4 {[%clk 0:02:25.1]} 15...
c6 {[%clk 0:01:56]} 16. Nxd6 {[%clk 0:02:17.6]} 16... Qxd6 {[%clk 0:01:56.9]}
17. c4 {[%clk 0:02:16]} 17... Rab8 {[%clk 0:01:47.4]} 18. Qc2 {[%clk 0:02:09.1]}
18... b5 {[%clk 0:01:45.1]} 19. cxb5 {[%clk 0:02:05.2]} 19... cxb5 {[%clk
0:01:44.6]} 20. Qxe4 {[%clk 0:02:05.7]} 20... Nb6 {[%clk 0:01:44.2]} 21. Rac1
{[%clk 0:01:45.1]} 21... Nc4 {[%clk 0:01:42.6]} 22. Rc2 {[%clk 0:01:45.5]} 22...
Rfc8 {[%clk 0:01:24.1]} 23. Rfc1 {[%clk 0:01:45]} 23... Qd5 {[%clk 0:01:21.6]}
24. Qg4 {[%clk 0:01:38.8]} 24... f5 {[%clk 0:01:09.8]} 25. Qe2 {[%clk
0:01:39.3]} 25... Rc6 {[%clk 0:00:46.5]} 26. f3 {[%clk 0:01:35.6]} 26... Rbc8
{[%clk 0:00:43.8]} 27. e4 {[%clk 0:01:35.3]} 27... Qd7 {[%clk 0:00:38.5]} 28.
Kh1 {[%clk 0:01:24.9]} 28... h6 {[%clk 0:00:31.7]} 29. Qf2 {[%clk 0:01:18.1]}
29... Nd6 {[%clk 0:00:24.2]} 30. exf5 {[%clk 0:01:00.2]} 30... Nxf5 {[%clk
0:00:13.5]} 31. Rc5 {[%clk 0:00:59.4]} 31... Nd6 {[%clk 0:00:07.1]} 32. d5
{[%clk 0:00:56.2]} 32... Rxc5 {[%clk 0:00:02.8]} 33. bxc5 {[%clk 0:00:54.6]}
33... Nc4 {[%clk 0:00:03.2]} 34. d6 {[%clk 0:00:48.7]} 34... Qc6 {[%clk
0:00:03.7]} 35. Bd4 {[%clk 0:00:39.8]} 35... Qd5 {[%clk 0:00:03.5]} 36. f4
{[%clk 0:00:29.7]} 36... g5 {[%clk 0:00:03]} 37. fxg5 {[%clk 0:00:28.9]} 37...
e5 {[%clk 0:00:03.3]} 38. gxh6 {[%clk 0:00:23.2]} 38... exd4 {[%clk 0:00:02.4]}
39. Qg3+ {[%clk 0:00:21.1]} 39... Kf8 {[%clk 0:00:01.4]} 40. Qg7+ {[%clk
0:00:22]} 40... Ke8 {[%clk 0:00:01.9]} 41. Qe7# {[%clk 0:00:21.5]} 1-0

[Event "Early-Titled-Tuesday-Blitz-January-23-2024"]
[Site "Chess.com"]
[Date "2024.01.23"]
[Round "2"]
[White "SnekkerAndersen"]
[Black "AlexandraSamaganova"]
[Result "0-1"]
[WhiteElo "2639"]
[BlackElo "2384"]
[TimeControl "180+1"]
[EndTime "8:17:50 PST"]
[Termination "AlexandraSamaganova won by checkmate"]

1. a3 {[%clk 0:02:07.8]} 1... c5 {[%clk 0:02:58.1]} 2. h3 {[%clk 0:02:08.7]}
2... Nc6 {[%clk 0:02:56.8]} 3. d3 {[%clk 0:02:05.8]} 3... g6 {[%clk 0:02:56.4]}
4. e3 {[%clk 0:02:06.1]} 4... Bg7 {[%clk 0:02:56]} 5. Nc3 {[%clk 0:02:06.2]}
5... Nf6 {[%clk 0:02:54.8]} 6. Bd2 {[%clk 0:02:02.6]} 6... O-O {[%clk 0:02:55]}
7. e4 {[%clk 0:02:01.8]} 7... d5 {[%clk 0:02:54.6]} 8. Nf3 {[%clk 0:02:01.7]}
8... dxe4 {[%clk 0:02:46.8]} 9. Nxe4 {[%clk 0:02:02.6]} 9... Nxe4 {[%clk
0:02:45.8]} 10. dxe4 {[%clk 0:02:03.5]} 10... Bxb2 {[%clk 0:02:44.7]} 11. Rb1
{[%clk 0:01:57.4]} 11... Bg7 {[%clk 0:02:40.3]} 12. Bc4 {[%clk 0:01:55]} 12...
Nd4 {[%clk 0:02:23.2]} 13. Nxd4 {[%clk 0:01:49.4]} 13... Qxd4 {[%clk 0:02:21.6]}
14. Qe2 {[%clk 0:01:44.8]} 14... Rd8 {[%clk 0:02:09]} 15. c3 {[%clk 0:01:31.6]}
15... Qd6 {[%clk 0:01:58.8]} 16. Rd1 {[%clk 0:01:28.5]} 16... a6 {[%clk
0:01:50.7]} 17. O-O {[%clk 0:01:27.7]} 17... Qc7 {[%clk 0:01:14.7]} 18. a4
{[%clk 0:01:24.8]} 18... Bd7 {[%clk 0:01:09.7]} 19. Qf3 {[%clk 0:01:22.6]} 19...
e6 {[%clk 0:01:07.9]} 20. Bg5 {[%clk 0:01:21.6]} 20... Re8 {[%clk 0:01:03.8]}
21. Bf4 {[%clk 0:01:21.6]} 21... Qc8 {[%clk 0:01:01.3]} 22. Rd6 {[%clk
0:01:16.9]} 22... Bc6 {[%clk 0:00:55.5]} 23. Rfd1 {[%clk 0:01:17]} 23... b5
{[%clk 0:00:52.7]} 24. axb5 {[%clk 0:01:15.3]} 24... axb5 {[%clk 0:00:52.7]} 25.
Bf1 {[%clk 0:01:16.2]} 25... Ra3 {[%clk 0:00:50.6]} 26. Bg5 {[%clk 0:00:54.1]}
26... Rxc3 {[%clk 0:00:45.1]} 27. Qf4 {[%clk 0:00:52.8]} 27... e5 {[%clk
0:00:37.1]} 28. Qh4 {[%clk 0:00:49.4]} 28... h5 {[%clk 0:00:23.3]} 29. Rd8
{[%clk 0:00:48.5]} 29... Qe6 {[%clk 0:00:22.8]} 30. R1d6 {[%clk 0:00:39.1]}
30... Qb3 {[%clk 0:00:06.1]} 31. Rxc6 {[%clk 0:00:34.3]} 31... Rxd8 {[%clk
0:00:06.1]} 32. Bxd8 {[%clk 0:00:35.2]} 32... Rc1 {[%clk 0:00:05.1]} 33. Bg5
{[%clk 0:00:34.6]} 33... Rd1 {[%clk 0:00:04.2]} 34. g4 {[%clk 0:00:25.8]} 34...
Qd3 {[%clk 0:00:03.9]} 35. Rc8+ {[%clk 0:00:10.4]} 35... Kh7 {[%clk 0:00:03.7]}
36. Kg2 {[%clk 0:00:07.1]} 36... Qxf1+ {[%clk 0:00:03.8]} 37. Kg3 {[%clk
0:00:07.6]} 37... Rd3+ {[%clk 0:00:03]} 38. Kh2 {[%clk 0:00:08.1]} 38... Rd1
{[%clk 0:00:02.6]} 39. Kg3 {[%clk 0:00:08.4]} 39... Qg1+ {[%clk 0:00:02.9]} 40.
Kf3 {[%clk 0:00:08.6]} 40... Rd3+ {[%clk 0:00:03.3]} 41. Ke2 {[%clk 0:00:09]}
41... Qd1# {[%clk 0:00:03.6]} 0-1